Cogmind - Beta 16.1 *** ADVENTURER MODE // 2026.02.27 @ 15:15:50 Player: Terra Result: Destroyed by as-68586 with Assembled Heavy Rifle Performance ------------- Evolutions (1) 500 Regions Visited (3) 600 Robots Destroyed (14) 70 Value Destroyed (388) 388 Prototype IDs (0) 0 Alien Tech Used (0) 0 Bonus (200) 200 TOTAL SCORE: 1758 Bonus ------- Pacifist 200 Cogmind --------- Core Integrity 0/400 Matter 290/300 Energy 78/100 System Corruption 0% Temperature Cool (4) Movement Core (150) Ox2 Location -9/Mines Parts ------- > --- POWER (1) -------- (None) > --- PROPULSION (3) --- (None) > --- UTILITY (3) ------ Small Storage Unit > --- WEAPON (2) ------- Particle Gun > --- INVENTORY (8) ---- Ion Engine Light Treads Light Treads Flight Unit Flight Unit Peak State ------------ > --- POWER ------------ Improved Ion Engine > --- PROPULSION ------- Flight Unit VTOL Module VTOL Module > --- UTILITY ---------- Heat Sink Small Storage Unit > --- WEAPON ----------- Light Assault Rifle Light Cannon > --- INVENTORY -------- Ion Engine Light Treads Light Treads Flight Unit Flight Unit Flight Unit Beam Cannon Light Assault Rifle [Rating: 11] Favorites ----------- Power Ion Engine Engine Ion Engine Propulsion VTOL Module Wheel Wheel Flight Unit VTOL Module Utility Small Storage Unit Device Heat Sink Storage Small Storage Unit Weapon Light Assault Rifle Energy Gun Particle Gun Energy Cannon Beam Cannon Ballistic Gun Light Assault Rifle Ballistic Cannon Light Cannon Build | -11 -10 -9 -9 ------- Run | Yrd Mat Mat Min Slots Evolved 2 | . . 2 . Power . | . . . . Propulsion 1 | . . 1 . Utility 1 | . . 1 . Weapon . | . . . . Parts Attached 19 | 6 1 8 4 Power 2 | 1 . 1 . Engine 2 | 1 . 1 . Core . | . . . . Reactor . | . . . . Propulsion 9 | 2 . 6 1 Treads . | . . . . Leg . | . . . . Wheel 3 | 2 . 1 . Hover . | . . . . Flight 6 | . . 5 1 Utility 2 | 1 . 1 . Device 1 | . . 1 . Storage 1 | 1 . . . Processor . | . . . . Hackware . | . . . . Protection . | . . . . Artifact . | . . . . Weapon 6 | 2 1 . 3 Energy Gun 2 | . . . 2 Energy Cannon 1 | . . . 1 Ballistic Gun 2 | 2 . . . Ballistic Cannon 1 | . 1 . . Launcher . | . . . . Special Weapon . | . . . . Impact Weapon . | . . . . Slashing Weapon . | . . . . Piercing Weapon . | . . . . Special Melee Weapon . | . . . . Unidentified Prototypes . | . . . . Parts Lost 11 | . . . 11 Power 1 | . . . 1 Propulsion 4 | . . . 4 Utility 1 | . . . 1 Weapon 5 | . . . 5 Highest Loss Streak 10 | . . . 10 To Critical Strikes . | . . . . Average Backups 6 | 2 4 7 7 Power . | . 1 1 1 Propulsion 3 | 1 2 4 4 Utility . | . . . . Weapon 1 | 1 1 2 1 Tool/Special . | . . . . Unused Backups 4 | . . 1 3 Power 1 | . . . 1 Propulsion 2 | . . . 2 Utility . | . . . . Weapon 1 | . . 1 . Tool/Special . | . . . . Average Slot Usage (%) 83 | . 85 85 78 Engine 10 | . 14 11 9 Wheel 6 | . 28 5 . Flight 23 | . . 27 27 Device 7 | . . 8 10 Storage 11 | . 14 11 11 Ballistic Gun 11 | . 17 11 10 Ballistic Cannon 10 | . 10 11 8 Peak Build Rating 11 | 6 6 11 11 Average Rating 8 | 3 6 9 9 On Entrance 5 | . 6 6 11 Avg Prop Armor Cover (%) . | . . . . Naked Turns . | . . . . Heaviest Build 17 | 12 14 17 17 Greatest Support 36 | 26 26 36 12 Greatest Overweight (x) 2 | 1 . 1 2 Average Overweight (x) . | . . . 1 Largest Inventory Capacity 8 | 8 8 8 8 Average Capacity 7 | 6 8 8 8 Most Carried 8 | 5 6 8 8 Average Carried 6 | 3 5 7 7 Final Capacity 8 | 8 8 8 8 Final Carried 8 | 4 6 8 5 Class Distribution -------------------- 89% | Mutant 10% | Scavenger-Mutant Dominant Class ---------------- Mutant | -10/Materials Mutant | -9/Materials Mutant | -9/Mines Resources | -11 -10 -9 -9 ----------- Run | Yrd Mat Mat Min Matter Collected 529 | 130 . 175 224 Remotely . | . . . . Salvage Created 457 | . . 295 162 Parts 26 | . . 19 7 Haulers Intercepted . | . . . . Recyclers Shooed . | . . . . Parts Field Recycled . | . . . . Retrieved Matter . | . . . . Parts Self-Destructed . | . . . . Prevented . | . . . . Parts Restored . | . . . . Kills | -11 -10 -9 -9 ------- Run | Yrd Mat Mat Min Combat Hostiles Destroyed 19 | . . 9 10 Guns 9 | . . 4 5 Cannons 10 | . . 5 5 Classes Destroyed 4 | . . 3 1 Swarmer 6 | . . 3 3 Grunt 5 | . . 3 2 Sentry 3 | . . 3 . Assembled 5 | . . . 5 Best Kill Streak 5 | . . 5 5 Combat Bots Only 5 | . . 5 5 Max Kills in Single Turn 1 | . . 1 1 Gunslinging . | . . . . Exploded . | . . . . Melee . | . . . . Uniques/NPCs Destroyed . | . . . . Combat | -11 -10 -9 -9 -------- Run | Yrd Mat Mat Min Hostile Shots Fired 145 | . . 52 93 Missed 41 | . . 17 24 Hits 104 | . . 35 69 Melee 11 | . . . 11 Projectile 93 | . . 35 58 Part Disruptions 1 | . . . 1 Damage Taken 1173 | . . 282 891 Core 406 | . . 77 329 Absorbed by Shields . | . . . . Ignored by Resistances 344 | . . 89 255 Core Remaining (%) 100 | 100 100 . . Volleys Fired 52 | . . 24 28 Largest 2 | . . 2 2 Hottest 80 | . . 50 80 Shots Fired 92 | . . 48 44 Gun 52 | . . 24 28 Cannon 40 | . . 24 16 Launcher . | . . . . Special . | . . . . Kinetic 82 | . . 48 34 Thermal 10 | . . . 10 Explosive . | . . . . Electromagnetic . | . . . . Robot Hit Streak 18 | . . 18 17 Robot Miss Streak 3 | . . 3 1 Penetration Max . | . . . . Secondary Targets . | . . . . Shots Hit Robots 72 | . . 35 37 Core Hits 32 | . . 15 17 Critical Kills . | . . . . Critical Parts Destroyed . | . . . . Critical Strikes 3 | . . . 3 Burn 3 | . . . 3 Melee Attacks . | . . . . Impact . | . . . . Slashing . | . . . . Piercing . | . . . . Sneak Attacks . | . . . . Combat Hostiles . | . . . . Follow-up Attacks . | . . . . Damage Inflicted 903 | . . 400 503 Guns 421 | . . 168 253 Cannons 482 | . . 232 250 Explosions . | . . . . Melee . | . . . . Ramming . | . . . . Kinetic 742 | . . 400 342 Thermal 161 | . . . 161 Explosive . | . . . . Electromagnetic . | . . . . Impact . | . . . . Slashing . | . . . . Piercing . | . . . . Highest Corruption . | . . . . Average Corruption . | . . . . Corruption Purged . | . . . . Corruption Blocked . | . . . . Overload Shots . | . . . . Overflow Damage 5 | . . . 5 Projectiles 5 | . . . 5 Explosions . | . . . . Melee . | . . . . Knockbacks 1 | . . . 1 Impact . | . . . . Kinetic 1 | . . . 1 Secondary . | . . . . Self-Inflicted Damage . | . . . . Shots . | . . . . Rammed . | . . . . Targets Rammed . | . . . . Kicked . | . . . . Crushed . | . . . . Highest Temperature 40 | . . 20 40 Average Temperature 10 | . . 5 15 Received Heat Transfer 266 | . . 81 185 Siege Activations . | . . . . Martial Activations . | . . . . Shielding Activations . | . . . . Robots Disrupted . | . . . . Combat Hostiles . | . . . . Robots Corrupted . | . . . . Combat Hostiles . | . . . . Parts Fried . | . . . . Impact Corruptions . | . . . . Robots Melted . | . . . . Combat Hostiles . | . . . . Parts Melted . | . . . . Heat Transferred 592 | . . . 592 Parts Sabotaged . | . . . . Parts Stolen . | . . . . Parts Stripped . | . . . . Power Chain Reactions . | . . . . Alert | -11 -10 -9 -9 ------- Run | Yrd Mat Mat Min Maximum Alert Level . | . . . . Low Security (%) 100 | 100 100 100 100 Level 1 . | . . . . Level 2 . | . . . . Level 3 . | . . . . Level 4 . | . . . . Level 5 . | . . . . High Security . | . . . . Max Security . | . . . . Peak Influence 110 | . . 110 91 Initial 21 | . . . 21 Average 44 | . . 55 53 Influence Increases 375 | . . 255 120 Destroy 0b10 Robot/C 280 | . . 180 100 Destroy Leader 70 | . . 50 20 Disable Machine 9 | . . 9 . Destroy Structure 1 | . . 1 . Lose Combat Pursuer 15 | . . 15 . Influence Decreases 375 | . . 190 185 Entered New Map 44 | . . . 44 Time Decay 280 | . . 190 90 Lost Part 51 | . . . 51 Squads Dispatched 1 | . . 1 . Investigation 1 | . . 1 . Extermination . | . . . . Reinforcement . | . . . . Assault . | . . . . Garrison . | . . . . Intercept . | . . . . Searches Triggered . | . . . . Construction Impeded . | . . . . Haulers Reinforced . | . . . . Active Scanning Responses . | . . . . Cargo Convoy Interrupts . | . . . . Stealth | -11 -10 -9 -9 --------- Run | Yrd Mat Mat Min Distress Signals 1 | . . 1 . Communications Jammed . | . . . . Distress Signals . | . . . . Times Spotted 29 | . . 12 17 Peak Tracking Total 12 | . . 5 12 Tactical Retreats 2 | . . 1 1 Traps | -11 -10 -9 -9 ------- Run | Yrd Mat Mat Min Traps Triggered 1 | . . 1 . Indirectly . | . . . . Trap Hack Attempts . | . . . . Triggered . | . . . . Disarmed . | . . . . Reprogrammed . | . . . . Reused . | . . . . Traps Extracted . | . . . . Installed . | . . . . Triggered . | . . . . Machines | -11 -10 -9 -9 ---------- Run | Yrd Mat Mat Min Machines Disabled 1 | . . 1 . Max in Single Turn 1 | . . 1 . Machines Repaired . | . . . . Machines Dismantled . | . . . . Machines Sabotaged . | . . . . Overloaded Fab Kills . | . . . . Hacking | -11 -10 -9 -9 --------- Run | Yrd Mat Mat Min Machines Accessed . | . . . . Terminals . | . . . . Fabricators . | . . . . Repair Stations . | . . . . Recycling Units . | . . . . Scanalyzers . | . . . . Garrison Access . | . . . . Total Hacks . | . . . . Successful . | . . . . Failed . | . . . . Catastrophic . | . . . . Database Lockouts . | . . . . Manual . | . . . . Terminals . | . . . . Fabricators . | . . . . Repair Stations . | . . . . Recycling Units . | . . . . Scanalyzers . | . . . . Garrison Access . | . . . . Terminal Hacks . | . . . . Fabricator Hacks . | . . . . Repair Station Hacks . | . . . . Recycling Unit Hacks . | . . . . Scanalyzer . | . . . . Garrison Access Hacks . | . . . . Unauthorized Hacks . | . . . . Terminals . | . . . . Fabricators . | . . . . Repair Stations . | . . . . Recycling Units . | . . . . Scanalyzers . | . . . . Garrison Access . | . . . . Data Cores Recovered . | . . . . Used . | . . . . Hacking Detections . | . . . . Full Trace Events . | . . . . Feedback Events . | . . . . Feedback Blocked . | . . . . Robot Schematics Acquired . | . . . . Robots Built . | . . . . Authchips . | . . . . Time . | . . . . Total Robot Build Rating . | . . . . Part Schematics Acquired . | . . . . Parts Built . | . . . . Authchips . | . . . . Time . | . . . . Total Part Build Rating . | . . . . Part Studies Acquired . | . . . . Parts Repaired . | . . . . Time . | . . . . Parts Recycled . | . . . . Recycled Matter . | . . . . Retrieved Matter . | . . . . Retrieved Components . | . . . . Parts Scanalyzed . | . . . . Part Schematics Acquired . | . . . . Parts Damaged . | . . . . Bothacking | -11 -10 -9 -9 ------------ Run | Yrd Mat Mat Min Used RIF Installer . | . . . . Robots Hacked . | . . . . Non-combat . | . . . . Combat . | . . . . Robot Hacks Applied . | . . . . Relay Couplers Released . | . . . . Fabnet Peak Effective % . | . . . . Robots Rewired . | . . . . Allies Hacked . | . . . . Hacks Repelled . | . . . . Allies | -11 -10 -9 -9 -------- Run | Yrd Mat Mat Min Total Allies . | . . . . Largest Group . | . . . . Highest-Rated Group . | . . . . Highest-Rated Ally . | . . . . Total Orders . | . . . . Ally Attacks . | . . . . Total Damage . | . . . . Kills . | . . . . Allies Corrupted . | . . . . Allies Melted . | . . . . Intel | -11 -10 -9 -9 ------- Run | Yrd Mat Mat Min Active Infowar (turns) . | . . . . Robot Analysis Total . | . . . . Derelict Logs Recovered 1 | . . . 1 Drone Launches . | . . . . Drone Recoveries . | . . . . Exploration | -11 -10 -9 -9 ------------- Run | Yrd Mat Mat Min Turns Passed 742 | 40 100 383 219 Spaces Moved 520 | 32 108 257 123 Core 14 | 12 . . 2 Treads . | . . . . Legs . | . . . . Wheels 149 | 20 108 21 . Hover . | . . . . Flight 357 | . . 236 121 Fastest Speed 50 | 50 90 86 100 Average Speed 103 | 78 90 108 111 Slowest Speed 200 | 100 90 114 200 Overloaded Moves . | . . . . Propulsion Burnouts . | . . . . Robots Hopped . | . . . . Potential Cave-ins . | . . . . Cave-ins Triggered . | . . . . Exploration Rate (%) 24 | 3 23 28 42 Regions Visited 3 Branch Regions 1 Pre-discovered Areas . | . . . . Known Exits Taken . | . . . . Unknown Exits Taken 3 | 1 1 1 . Scrap Searched 1 | . . . 1 Spaces Dug . | . . . . Terrain Destroyed . | . . . . Melee . | . . . . Projectile . | . . . . AOE . | . . . . Terrain Rammed . | . . . . Walls Destroyed . | . . . . Machines Disabled . | . . . . Actions | -11 -10 -9 -9 --------- Run | Yrd Mat Mat Min Total 641 | 46 110 319 166 Wait 27 | . . 19 8 Move 517 | 31 107 256 123 Hop . | . . . . Pick Up 20 | 9 2 7 2 Fast Attach 2 | 1 . 1 . Attach 14 | 5 . 4 5 Detach . | . . . . Swap 4 | . 1 3 . Drop 5 | . . 5 . Fire 52 | . . 24 28 Melee . | . . . . Ram . | . . . . Kick . | . . . . Crush . | . . . . Escape Stasis . | . . . . Rewire . | . . . . Trap . | . . . . Miscellaneous . | . . . . Route ------- -11/Scrapyard -10/Materials -9/Materials -9/Mines History --------- Turn | Location | Event 14 | -11/Scrapyard | Discovered new exit (range 15) 41 | -11/Scrapyard | Entered Materials 138 | -10/Materials | Discovered new exit (range 5) 141 | -10/Materials | Entered another Materials area 141 | -9/Materials | Evolved 2 slots: Propulsion x1, Utility x1 301 | -9/Materials | Build established: Mutant 506 | -9/Materials | Discovered new exit (range 11) 524 | -9/Materials | Entered Mines 665 | -9/Mines | Assembled infested the area 670 | -9/Mines | Assisted by a Guerilla fighting off Assembled 706 | -9/Mines | Core integrity fell below 50% 734 | -9/Mines | Core integrity fell below 20% 743 | -9/Mines | Destroyed by as-68586 with Assembled Heavy Rifle Last Messages --------------- 00704_ Destroyed Asb. Hover Unit. 00705_ as-17124 destroyed. 00705_ Imp. Ion Engine destroyed. 00707_ as-65462 destroyed. 00712_ Destroyed Asb. Hover Unit. 00717_ as-52652 destroyed. 00722_ as-13953 destroyed. 00724_ Lgt. Assault Rifle destroyed. 00726_ Heat Sink destroyed. 00726_ Acquired Particle Gun. 00727_ Flight Unit destroyed. 00728_ as-63905 suffers critical hit (Burn). 00731_ Beam Cannon destroyed. 00732_ Destroyed Asb. Hover Unit. 00732_ as-63905 suffers critical hit (Burn). 00737_ Particle Gun destroyed. 00738_ Acquired 4 matter. 00740_ Acquired Particle Gun. 00742_ as-38227 destroyed. Map ----- +----------------------------------------------------+ | ??????????????????????????????????????????? | | ??????????????????????????????????????????? | | ??????????????????????????????????????????? | | ??????????????????????????????????????????? | | ??????????????????????????????????????????? | | ??????????????????????????????????????????? | | ??????????????????????????????????????????? | | ??????????????????????????????????????????? | | ????????????#??#? ????????????????????????? | | ???????????? ## ????????????????????????? | | ???????????? ????????????????????????? | | ####???????? ?????????????????????????? | | ????????? #?????????????????????????? | | # #????????? ##??####??????????????????? | | # #????????# ??## ##????????? ???????? | | #???????## ???# ###?#### ????????? | | # #???????# ????? ## ?????????? | | # #???????# ??????# ???????????? | | # #???????# #??##### #?????????????? | | # #???????# #?## ## #??????????????? | | # ######### ### #??????#????????? | | # ###### #????????? | | ########### # #????????? | | ??????????### #### # #% #????????? | | ????????????# #??# ####%a########????????? | | ????????????# #?# #??# @#???????????????? | | ???????????? ## ??#%%#???????????????? | | ????????????### ?# =#???????????????? | | ?????????????! ?# %#???????????????? | | ????????????*# #a #???????????????? | | ???????????#?## < #???????????????? | | ??????????????##!% = ???????????????? | | ???????????????##= *%! ???????????????? | | ????????????????#% %=% ??????????????? | | ???????????????? ??????????????? | | ???????????????? ?????????????? | | ????????????????? ?????????????? | | ?????????????????? ##????????????? | | ????????????????? #; ##?????????????? | | ???????????????? ### #??????????????? | | ?????????????????? ??? ??????????????? | | ????????????????????????? ??????????????? | | ????????????????????????? ???????????????? | | ??????????????????????????????????????????? | | ??????????????????????????????????????????? | | ??????????????????????????????????????????? | | ??????????????????????????????????????????? | | ??????????????????????????????????????????? | | ??????????????????????????????????????????? | | ??????????????????????????????????????????? | +----------------------------------------------------+ Best States ------------- Heat Dissipation 38 Energy Generation 12 Energy Capacity 265 Matter Stores 300 Matter Capacity 300 Sight Range 16 Terrain Scan Density 10 Resistance: KI 20 Resistance: TH 20 Resistance: EX 20 Resistance: EM 20 Resistance: I 20 Resistance: S 20 Resistance: P 20 Evasion (%) 50 Offensive Hacking 10 Item Schematics ----------------- None Robot Schematics ------------------ None Fabricated ------------ Nothing Repaired ---------- Nothing Studied --------- None Alien Tech Used ----------------- None Achievements -------------- None Challenges ------------ None Game ------ Seed SalvageIonicSpecial Manual? 0 Play Time 00:09:08 Cumulative 29.0 hours Start 2026.02.27 @ 15:08:44 End 2026.02.27 @ 15:15:50 Sessions 1 Manual Loads 0 Difficulty Adventurer Special Mode None Game No. 44 Rogue 0 Adventurer 44 Explorer 0 Win Type - Total 0 Types 0/0/0/0/0/0/0/0/0/0 Lore% 7 Gallery% 31 Achievement% 21 Wizard Run 0 Options --------- Layout 1 ASCII 0 Keyboard 0 Movement Mouse Keybinds 1 Fullscreen 2 Font 32/SmallcapsGlow Map View 50x35 Zoom Use 0% Tactical HUD 1 Map Filters NONE Filters NONE Steam 1 RUN: f082175b-02aa-4807-8fa6-ba5c0a207411